bitfinex-derivatives/quotes_ETHF0:USTF0_20251001
["timestamp","ask_amount","ask_price","bid_price","bid_amount"]
[1759313561547,5.83493528,4297.8,4297.7,6.80657297]
[1759313561841,5.83493528,4297.8,4297.7,1.91047297]
[1759313562043,10.83493528,4297.8,4297.7,1.91047297]
[1759313562242,10.83493528,4297.8,4297.7,3.26507297]
[1759313562641,10.83493528,4297.8,4297.7,1.91047297]
[1759313563246,10.83493528,4297.8,4297.7,0.00257297]
[1759313563446,10.83493528,4297.8,4297.7,0.24657297]
[1759313563844,10.83493528,4297.8,4297.7,2.97e-06]
[1759313564549,6.14849,4297.5,4297.4,2.1547]
[1759313564847,9.92916528,4297.5,4297.4,2.40124925]
[1759313565042,9.92916528,4297.5,4297.4,5.94164925]
[1759313565744,5.67256528,4297.5,4297.4,5.14264925]
[1759313566743,7.70806528,4297.5,4297.4,5.14264925]
[1759313566944,5.67256528,4297.5,4297.4,5.14264925]
[1759313567139,9.04276528,4297.5,4297.4,4.89864925]
[1759313567542,9.04276528,4297.5,4297.4,5.14264925]
[1759313567741,7.00726528,4297.5,4297.4,5.14264925]
[1759313568348,5.67256528,4297.5,4297.4,5.14264925]
[1759313568850,4.19936528,4297.5,4297.4,5.14264925]
[1759313569346,9.04276528,4297.5,4297.4,4.89864925]
[1759313569546,9.04276528,4297.5,4297.4,5.14264925]
[1759313570151,9.92916528,4297.5,4297.4,2.71284925]
[1759313570443,9.92916528,4297.5,4297.4,0.24654925]
[1759313570648,9.92916528,4297.5,4297.4,0.00254925]
[1759313570843,9.92916528,4297.5,4297.4,0.24654925]
[1759313571043,9.04276528,4297.5,4297.4,5.14264925]
[1759313571744,9.04276528,4297.5,4297.4,4.89864925]
[1759313571949,9.04276528,4297.5,4297.4,5.14264925]
[1759313572151,9.92916528,4297.5,4297.4,2.95684925]
[1759313572449,9.92916528,4297.5,4297.4,1.60114925]
[1759313572645,0.41871,4297.2,4297.1,42.5399]
[1759313572850,2.45421,4297.2,4297.1,40.5981]
[1759313573154,3.02708528,4297.2,4297.1,36.535]
[1759313573552,3.02708528,4297.2,4297.1,36.29333842]
[1759313573855,0.99158528,4297.2,4297.1,38.32383842]
[1759313574056,3.15348528,4297.2,4297.1,38.56683842]
[1759313575350,3.15348528,4297.2,4297.1,38.32383842]
[1759313575651,3.15348528,4297.2,4297.1,38.56683842]
[1759313576444,0.99158528,4297.2,4297.1,38.56683842]
[1759313576746,0.4418,4298.4,4298.3,4.8646]
[1759313576946,0.4418,4298.4,4298.3,8.3154]
[1759313577145,0.4418,4298.4,4298.3,8.3164]
[1759313577146,0.4186,4298.4,4298.3,8.3164]
[1759313577747,0.4186,4298.4,4298.3,8.0724]
[1759313577948,0.4186,4298.4,4298.3,8.3164]
[1759313578151,0.4186,4298.4,4298.3,8.0724]
[1759313578351,0.4186,4298.4,4298.3,8.3164]
[1759313578852,0.4186,4298.4,4298.3,8.0724]
[1759313579150,0.4186,4298.4,4298.3,8.3164]
[1759313579349,1.7659,4298.4,4298.3,8.0724]
[1759313579655,1.7659,4298.4,4298.3,8.3164]
[1759313579656,5.3864,4298.4,4298.3,8.3164]
[1759313580252,5.3864,4298.4,4298.3,8.0724]
[1759313580451,5.3864,4298.4,4298.3,8.3164]
[1759313580852,1.7659,4298.4,4298.3,8.3164]
[1759313581857,1.7659,4298.4,4298.3,8.0724]
[1759313582250,0.4186,4298.4,4298.3,8.0724]
[1759313582450,0.4186,4298.4,4298.3,8.3164]
[1759313583059,3.231,4298.9,4298.4,2.0305]
[1759313583357,3.64955,4298.9,4298.8,4.8646]
[1759313583554,3.64955,4298.9,4298.8,5.1086]
[1759313583759,3.62635,4298.9,4298.8,5.1086]
[1759313585055,3.9278,4298.4,4298.3,2.8341]
[1759313585359,1.7659,4298.4,4298.3,3.0781]
[1759313585561,0.4186,4298.4,4298.3,5.1086]
[1759313586962,0.41859,4298.5,4298.4,2.0305]
[1759313587154,0.41859,4298.5,4298.4,4.8646]
[1759313587354,0.41858,4298.7,4298.6,4.8646]
[1759313587658,0.41858,4298.7,4298.6,5.1076]
[1759313588260,0.41858,4298.7,4298.6,4.8646]
[1759313588455,0.41858,4298.7,4298.6,5.1076]
[1759313590072,3.92778,4298.7,4298.6,4.8646]
[1759313590361,3.92778,4298.7,4298.6,5.1076]
[1759313591062,3.92778,4298.7,4298.6,4.8646]
[1759313591263,5.38638,4298.7,4298.6,5.1076]
[1759313591458,0.41858,4298.7,4298.6,4.8646]
[1759313591649,0.41858,4298.7,4298.6,5.1076]
[1759313594366,3.92778,4298.7,4298.6,5.1076]
[1759313594858,3.92778,4298.7,4298.6,4.8646]
[1759313595066,3.92778,4298.7,4298.6,5.1076]
[1759313595359,3.92778,4298.7,4298.6,4.8646]
[1759313595557,5.38638,4298.7,4298.6,4.8646]
[1759313595756,5.38638,4298.7,4298.6,5.1076]
[1759313596759,5.38638,4298.7,4298.5,0.8436]
[1759313596760,5.38651,4297.2,4297.1,8.42e-06]
[1759313596955,3.22464,4296.9,4296.8,1.43260842]
[1759313597162,5.90179991,4296.9,4296.8,0.24500842]
[1759313597356,2.58076,4295.7,4295.6,3.2078]
[1759313597560,2.58076,4295.7,4295.6,3.4528]
[1759313597960,5.38908966,4295.7,4295.6,0.00289443]
[1759313598169,5.38908966,4295.7,4295.6,0.24789443]
[1759313598467,2.58318966,4295.7,4295.6,0.24789443]
[1759313599261,3.93048966,4295.7,4295.6,0.00289443]
[1759313599459,5.42388966,4295.7,4295.6,0.24789443]
[1759313600760,2.58318966,4295.7,4295.6,0.24789443]
[1759313601765,4.04208966,4295.7,4295.6,0.24789443]
[1759313602570,5.53548966,4295.7,4295.6,0.24789443]
[1759313604577,5.53548966,4295.7,4295.6,0.00289443]
[1759313604979,5.53548966,4295.7,4295.6,0.24789443]
[1759313605975,5.53548966,4295.7,4295.6,0.00289443]
[1759313606275,5.53548966,4295.7,4295.6,0.24689443]
[1759313608274,5.53548966,4295.7,4295.6,0.00289443]
[1759313608474,8.74328966,4295.7,4295.6,0.24689443]
[1759313608674,5.4521,4295.3,4295.2,3.16239]
[1759313608874,5.4521,4295.3,4295.2,3.40639]
[1759313609673,5.4521,4295.3,4295.2,3.4086841]
[1759313610378,5.4521,4295.3,4295.2,0.0022941]
[1759313610678,5.4521,4295.3,4295.2,0.2472941]
[1759313611072,5.4521,4295.3,4295.2,0.0022941]
[1759313611376,5.4521,4295.3,4295.2,0.2472941]
[1759313611779,3.9674,4295.3,4295.2,0.2472941]
[1759313612475,5.4521,4295.3,4295.2,0.2472941]
[1759313613878,3.5485,4295.3,4295.2,0.6662041]
[1759313614077,3.9674,4295.3,4295.2,0.2472941]
[1759313614777,5.4521,4295.3,4295.2,0.2462941]
[1759313616269,5.4521,4295.3,4295.2,0.0022941]
[1759313616574,5.4521,4295.3,4295.2,0.2462941]
[1759313617278,5.4521,4295.3,4295.2,0.0022941]
[1759313617476,5.4521,4295.3,4295.2,0.2462941]
[1759313620581,5.4521,4295.3,4295.2,0.0022941]
[1759313621082,5.4521,4295.3,4295.2,0.2462941]
[1759313621975,5.4521,4295.3,4295.2,0.0022941]
[1759313622177,5.4521,4295.3,4295.2,0.2462941]
[1759313625184,5.4521,4295.3,4295.2,0.0022941]
[1759313625381,5.4521,4295.3,4295.2,0.2452941]
[1759313626377,5.96694318,4295.3,4295.2,0.0022941]
[1759313626883,5.96694318,4295.3,4295.1,0.48]
[1759313627088,5.96695318,4295.2,4295.1,0.48]
[1759313627288,5.96695318,4295.2,4295.1,0.723]
[1759313627585,5.45214,4294.9,4294.8,1.9639]
[1759313627783,5.96698318,4294.9,4294.8,2.2069]
[1759313627979,5.45216,4294.7,4294.6,0.089]
[1759313628186,5.96700318,4294.7,4294.6,0.33476052]
[1759313628789,5.96700318,4294.7,4294.6,0.09176052]
[1759313628992,5.96700318,4294.7,4294.6,0.33476052]
[1759313629290,5.96700318,4294.7,4294.6,0.09176052]
[1759313629790,5.96700318,4294.7,4294.6,0.33476052]
[1759313630190,5.96700318,4294.7,4294.6,0.09176052]
[1759313630383,5.96700318,4294.7,4294.6,0.33476052]
[1759313631391,5.96700318,4294.7,4294.6,0.09176052]
[1759313631594,5.45218,4294.4,4294.3,2.5074]
[1759313631792,5.96702318,4294.4,4294.3,2.7504]
[1759313631994,5.96702318,4294.4,4294.3,2.5074]
[1759313632391,5.96702318,4294.4,4294.3,2.7504]
[1759313632689,5.96702318,4294.4,4294.3,2.75264369]
[1759313632896,5.96702318,4294.4,4294.3,2.50964369]
[1759313633090,5.96702318,4294.4,4294.3,1.91174369]
[1759313633388,5.96702318,4294.4,4293.5,3.2078]
[1759313633389,5.40847,4293.6,4293.5,3.2078]
[1759313633690,5.8673,4293.5,4293.1,36.322]
[1759313633895,5.8673,4293.5,4293.4,0.7365]
[1759313634191,6.38153077,4293.5,4293.4,0.4935]
[1759313634396,6.38153077,4293.5,4293.4,0.73843261]
[1759313634692,5.40856,4292.6,4292.5,3.2078]
[1759313634892,3.6948,4292.5,4291.5,0.8084]
[1759313635094,3.6948,4292.5,4292.1,0.41921]
[1759313635290,0.41911,4293.1,4293.0,2.1622]
[1759313635592,3.5339,4292.7,4292.6,3.628]
[1759313635794,2.8169,4292.5,4292.4,1.4658]
[1759313636096,2.75257,4292.5,4292.4,0.2458862]
[1759313636288,4.9894,4292.5,4292.4,5.2585862]
[1759313636592,4.9894,4292.5,4292.4,5.0145862]
[1759313636791,5.8673,4292.5,4292.4,0.2468862]
[1759313637200,5.8673,4292.5,4292.4,1.7126862]
[1759313637684,5.8673,4292.5,4292.4,0.0018862]
[1759313637888,5.8673,4292.5,4292.4,0.2468862]
[1759313638893,5.8673,4292.5,4292.4,0.0018862]
[1759313639199,5.8673,4292.5,4292.4,0.2468862]
[1759313639389,5.8673,4292.5,4292.4,0.0018862]
[1759313639590,5.8673,4292.5,4292.4,0.2468862]
[1759313640287,5.8673,4292.5,4292.0,0.6519]
[1759313640288,1.3614,4292.2,4292.1,1.8493]
[1759313640487,1.3614,4292.2,4292.0,0.6519]
[1759313640488,9.12493016,4292.2,4292.0,0.6519]
[1759313640689,5.40865,4291.7,4291.6,0.03086]
[1759313640998,9.12498016,4291.7,4291.6,0.131]
[1759313641493,9.12498016,4291.7,4290.5,0.8084]
[1759313641494,2.1725,4291.0,4290.5,0.8084]
[1759313641792,3.2078,4290.9,4290.8,5.0127]
[1759313641997,3.2078,4291.9,4291.8,2.8505]
[1759313642191,6.0247,4291.9,4291.5,0.8084]
[1759313642395,1.78064,4291.8,4291.7,2.1622]
[1759313642597,5.40864,4291.8,4291.7,0.246]
[1759313642796,0.41925,4291.7,4291.5,2.9706]
[1759313643094,4.98843,4291.9,4291.8,5.0127]
[1759313643294,8.61643,4291.9,4291.8,5.0127]
[1759313643491,5.40865,4291.7,4291.6,3.874]
[1759313643995,1.78065,4291.7,4291.6,41.5957]
[1759313644197,1.78065,4291.7,4291.6,5.0127]
[1759313644396,1.78065,4291.7,4291.6,5.2587]
[1759313644397,5.40865,4291.7,4291.6,5.2587]
[1759313644993,5.40865,4291.7,4291.6,5.0127]
[1759313645295,5.40865,4291.7,4291.6,5.2577]
[1759313646000,5.40865,4291.7,4290.5,0.00188967]
[1759313646001,4.9894,4290.6,4290.5,0.00188967]
[1759313646201,4.9894,4290.6,4290.5,0.24688967]
[1759313646498,4.9894,4290.6,4290.5,0.24788967]
[1759313647097,4.9894,4290.6,4290.5,0.00188967]
[1759313647297,4.9894,4290.6,4290.5,0.24788967]
[1759313647900,4.9894,4290.6,4290.5,0.00188967]
[1759313648400,2.1725,4289.9,4289.0,1.89170643]
[1759313648600,2.1725,4289.4,4289.1,0.246]
[1759313648795,3.2078,4289.5,4289.4,2.1622]
[1759313649000,3.2078,4290.2,4289.6,2.1622]
[1759313649207,3.0504,4290.5,4289.8,2.1622]
[1759313649403,0.00269647,4290.2,4289.8,0.41943]
[1759313649597,2.1725,4290.1,4289.9,2.1622]
[1759313649900,0.00269647,4290.2,4290.0,2.4082]
[1759313650098,0.00269647,4290.2,4290.1,2.1622]
[1759313651091,0.00269647,4290.2,4290.1,7.1622]
[1759313653203,0.00269647,4290.2,4290.1,43.7582]
[1759313653703,0.00269647,4290.2,4290.1,2.4082]
[1759313653907,1.36409647,4290.2,4290.1,5.0127]
[1759313654110,1.36409647,4290.2,4290.1,5.2587]
[1759313654499,1.36409647,4290.2,4290.1,5.0127]
[1759313654707,0.00269647,4290.2,4290.1,41.6097]
[1759313655009,3.2078,4290.8,4290.7,5.0127]
[1759313655206,3.2078,4290.8,4290.7,5.2587]
[1759313655710,3.2078,4290.8,4290.7,82.4107]
[1759313655910,3.21036986,4290.8,4290.7,82.4107]
[1759313656908,3.21036986,4290.8,4290.7,87.4107]
[1759313657108,3.21036986,4290.8,4290.7,50.8127]
[1759313657408,3.21036986,4290.8,4290.7,87.4107]
[1759313657810,0.00256986,4290.8,4290.7,87.4107]
[1759313658511,0.00256986,4290.8,4290.7,45.8127]
[1759313658711,0.00256986,4290.8,4290.7,46.0577]
[1759313659905,0.00256986,4290.8,4290.7,45.8127]
[1759313660107,0.00256986,4290.8,4290.7,82.4117]
[1759313660409,2.14996986,4290.8,4290.7,45.8127]
[1759313660610,2.14996986,4290.8,4290.7,46.0587]
[1759313660810,0.00256986,4290.8,4290.7,46.0587]
[1759313661405,3.55986986,4290.8,4290.7,5.2587]
[1759313661612,4.96506986,4290.8,4290.7,5.2587]
[1759313662113,2.81766986,4290.8,4290.7,5.2587]
[1759313662313,2.81766986,4290.8,4290.7,3.628]
[1759313662314,8.17286986,4290.8,4290.7,3.628]
[1759313662505,1.4099,4290.4,4290.3,2.0668]
[1759313662708,4.9625,4290.4,4290.3,3.7457]
[1759313663010,1.4099,4290.7,4290.6,4.9325]
[1759313663212,1.4099,4290.7,4290.6,5.1775]
[1759313663411,3.21036986,4290.8,4290.7,2.65965]
[1759313663605,0.00256986,4290.8,4290.7,5.48385]
[1759313663804,1.35436986,4290.8,4290.7,5.0645]
[1759313664006,4.75386986,4290.8,4290.7,5.3095]
[1759313664205,2.73646986,4290.8,4290.7,5.3095]
[1759313664517,2.7339,4289.8,4289.7,5.2509]
[1759313664710,5.2252,4290.2,4290.0,2.8242]
[1759313664912,5.2252,4290.2,4290.1,5.3105]
[1759313664913,6.9964,4290.2,4290.1,5.3105]
[1759313665113,3.2078,4290.2,4290.1,5.3105]
[1759313665509,3.2078,4290.2,4289.6,0.00207674]
[1759313665510,4.7513,4289.7,4289.6,3.69867674]
[1759313665718,4.7513,4289.7,4289.6,1.45837674]
[1759313665914,4.7513,4289.7,4289.6,0.00207674]
[1759313666114,7.9591,4289.7,4289.6,0.24807674]
[1759313666322,5.73437087,4289.7,4289.6,0.24807674]
[1759313667818,5.73437087,4289.7,4289.6,0.00207674]
[1759313668015,5.73437087,4289.7,4289.6,0.24807674]
[1759313668713,5.73437087,4289.7,4289.6,2.48837674]
[1759313668909,7.08617087,4289.7,4289.6,3.94467674]
[1759313669113,5.09907087,4289.7,4289.6,5.31257674]
[1759313669322,3.2078,4289.7,4289.6,5.31257674]
[1759313669716,7.9591,4289.7,4289.6,0.00207674]
[1759313669915,7.9591,4289.7,4289.6,0.24807674]
[1759313670714,7.9591,4289.7,4289.6,3.94467674]
[1759313670919,7.9591,4289.7,4289.6,5.31257674]
[1759313670920,4.5596,4289.7,4289.6,5.31257674]
[1759313671716,0.41942,4290.0,4289.6,5.31257674]
[1759313672021,3.2078,4290.2,4290.1,2.8242]
[1759313672315,3.71681364,4290.2,4290.1,5.3105]
[1759313672519,5.06861364,4290.2,4290.1,5.3105]
[1759313672717,5.06861364,4290.2,4290.1,5.0645]
[1759313672916,5.06861364,4290.2,4290.1,5.3105]
[1759313673318,3.71681364,4290.2,4290.1,5.3105]
[1759313673524,3.2078,4290.2,4290.1,5.3105]
[1759313673920,0.0233,4291.0,4290.8,1.3679]
[1759313674124,0.0233,4291.0,4290.9,6.278]
[1759313674125,4.2337,4291.0,4290.9,6.278]
[1759313674322,5.6158,4291.0,4290.9,6.279]
[1759313674620,5.5925,4291.0,4290.9,6.279]
[1759313674820,5.5925,4291.0,4290.9,6.032]
[1759313675022,5.5952447,4291.0,4290.9,6.278]
[1759313675230,5.5952447,4291.0,4290.9,6.032]
[1759313675431,5.5952447,4291.0,4290.9,3.2078]
[1759313675721,5.5952447,4291.0,4290.9,6.278]
[1759313675923,0.0027447,4291.0,4290.9,7.675]
[1759313676718,0.0027447,4291.0,4290.9,7.429]
[1759313676922,5.5952447,4291.0,4290.9,42.638]
[1759313677125,5.5952447,4291.0,4290.9,3.4538]
[1759313677333,0.0027447,4291.0,4290.9,7.675]
[1759313678420,0.0027447,4291.0,4290.9,7.429]
[1759313678727,2.0201447,4291.0,4290.9,44.034]
[1759313679029,2.8613447,4291.0,4290.9,42.637]
[1759313679228,2.0201447,4291.0,4290.9,7.429]
[1759313679528,2.0201447,4291.0,4290.9,44.033]
[1759313680621,3.3719447,4291.0,4290.9,6.032]
[1759313680822,4.2131447,4291.0,4290.9,42.635]
[1759313681022,4.2131447,4291.0,4290.9,6.032]
[1759313681228,4.2131447,4291.0,4290.9,42.635]
[1759313682725,2.0201447,4291.0,4290.9,44.032]
[1759313682929,0.0027447,4291.0,4290.9,44.032]
[1759313683628,0.0027447,4291.0,4290.9,44.45133]
[1759313685233,2.0201447,4291.0,4290.9,44.45133]
[1759313685927,0.0027447,4291.0,4290.9,44.45133]
[1759313686129,2.8613447,4291.0,4290.9,42.635]
[1759313686328,2.8613447,4291.0,4290.9,43.05433]
[1759313686930,0.0027447,4291.0,4290.9,44.45133]
[1759313687231,0.0027447,4291.0,4290.9,7.84833]
[1759313687433,0.0027447,4291.0,4290.9,44.44733]
[1759313688627,2.0201447,4291.0,4290.9,44.44733]
[1759313688828,4.2131447,4291.0,4290.9,6.45133]
[1759313689028,5.5952447,4291.0,4290.9,43.05033]
[1759313689227,5.5952447,4291.0,4290.9,6.45133]
[1759313689428,5.5952447,4291.0,4290.9,6.69633]
[1759313689926,5.5952447,4291.0,4290.9,6.45133]
[1759313690123,5.5952447,4291.0,4290.9,6.69633]
[1759313690527,5.5952447,4291.0,4290.9,4.9091]
[1759313690724,5.5952447,4291.0,4290.9,5.32843]
[1759313691031,5.5952447,4291.0,4290.9,4.9091]
[1759313691335,4.2131447,4291.0,4290.9,6.69633]
[1759313691534,4.2131447,4291.0,4290.9,6.45133]
[1759313691732,4.2131447,4291.0,4290.9,6.69633]
[1759313691927,2.0201447,4291.0,4290.9,8.09333]
[1759313692131,4.2131447,4291.0,4290.9,8.09333]
[1759313692326,2.8613447,4291.0,4290.9,8.09333]
[1759313692526,0.0027447,4291.0,4290.9,8.09333]
[1759313693936,2.2282447,4291.0,4290.9,8.09333]
[1759313694140,4.4850447,4291.0,4290.9,6.77293]
[1759313694346,3.1008447,4291.0,4290.9,8.14513]
[1759313694843,2.2282447,4291.0,4290.9,7.90013]
[1759313695046,5.9226447,4291.0,4290.9,5.32743]
[1759313695250,5.9226447,4291.0,4290.9,4.9081]
[1759313695448,5.9226447,4291.0,4290.9,4.6641]
[1759313695649,5.9226447,4291.0,4290.9,4.9081]
[1759313695946,5.9226447,4291.0,4290.9,6.3526]
[1759313696450,5.9226447,4291.0,4290.9,6.77193]
[1759313697753,5.9226447,4291.0,4290.9,6.52793]
[1759313697946,5.9226447,4291.0,4290.9,6.77193]
[1759313698552,5.9226447,4291.0,4290.9,6.52793]
[1759313698753,5.9226447,4291.0,4290.9,6.77193]
[1759313699252,5.9226447,4291.0,4290.9,6.3526]
[1759313699452,5.9226447,4291.0,4290.9,6.77193]
[1759313699854,5.9226447,4291.0,4290.9,6.3526]
[1759313700153,6.3419647,4291.0,4290.9,4.6641]
[1759313700351,6.3419647,4291.0,4290.9,4.9081]
[1759313700550,6.3419647,4291.0,4290.9,3.2078]
[1759313701052,6.3419647,4291.0,4290.9,3.4518]
[1759313701851,6.89255222,4291.0,4290.9,3.4518]
[1759313702146,6.89255222,4291.0,4290.9,3.2078]
[1759313702352,6.89255222,4291.0,4290.9,3.4518]
[1759313703252,6.89255222,4291.0,4290.9,3.2078]
[1759313703760,6.89255222,4291.0,4290.9,3.4518]
[1759313704457,6.89255222,4291.0,4290.9,4.8968]
[1759313705653,0.0027447,4291.0,4290.9,8.13283]
[1759313705861,0.4220647,4291.0,4290.9,7.7135]
[1759313706051,0.0027447,4291.0,4290.9,8.13283]
[1759313706253,0.0027447,4291.0,4290.9,7.7135]
[1759313706254,2.2282447,4291.0,4290.9,7.7135]
[1759313706655,0.0027447,4291.0,4290.9,8.13283]
[1759313706849,0.0027447,4291.0,4290.9,6.3413]
[1759313706850,6.3419647,4291.0,4290.9,6.3413]
[1759313707850,6.3419647,4291.0,4290.9,6.0973]
[1759313708050,6.3419647,4291.0,4290.9,6.3413]
[1759313708255,6.3419647,4291.0,4290.9,6.0973]
[1759313708452,6.3419647,4291.0,4290.9,6.3403]
[1759313709362,2.6475647,4291.0,4290.9,7.7125]
[1759313709564,0.4220647,4291.0,4290.9,7.7125]
[1759313709764,0.0027447,4291.0,4290.9,7.7125]
[1759313710165,0.0027447,4291.0,4290.9,8.13183]
[1759313710571,0.0027447,4291.0,4290.9,7.88883]
[1759313710866,0.0027447,4291.0,4290.9,44.48583]
[1759313712162,2.2282447,4291.0,4290.9,7.7125]
[1759313712759,0.0027447,4291.0,4290.9,7.7125]
[1759313717468,2.2282447,4291.0,4290.9,7.7125]
[1759313718771,2.2282447,4291.0,4290.9,8.13183]
[1759313719270,4.4850447,4291.0,4290.9,8.13183]
[1759313719673,2.2282447,4291.0,4290.9,8.13183]
[1759313719972,2.2282447,4291.0,4290.9,44.48483]
[1759313721073,4.4392447,4291.0,4290.9,7.88883]
[1759313721271,4.4392447,4291.0,4290.9,44.48483]
[1759313721471,4.4392447,4291.0,4290.9,85.28483]
[1759313722171,4.4392447,4291.0,4290.9,47.31663]
[1759313722371,4.4392447,4291.0,4290.9,43.11263]
[1759313722771,4.4392447,4291.0,4290.9,44.41843]
[1759313723569,4.4392447,4291.0,4290.9,7.82243]
[1759313723769,0.0027447,4291.0,4290.9,44.41843]
[1759313725475,2.1212447,4291.0,4290.9,44.41843]
[1759313726078,0.0027447,4291.0,4290.9,44.41843]
[1759313726880,2.1212447,4291.0,4290.9,44.41843]
[1759313727078,0.0027447,4291.0,4290.9,44.41843]
[1759313727276,2.1212447,4291.0,4290.9,44.41843]
[1759313728077,0.0027447,4291.0,4290.9,44.41843]
[1759313728579,2.1212447,4291.0,4290.9,44.41843]
[1759313728780,0.0027447,4291.0,4290.9,44.41843]
[1759313729580,2.1185,4291.9,4291.5,1.04818]
[1759313729771,0.8154,4293.0,4292.1,1.3506]
[1759313729772,2.1185,4292.4,4292.1,1.3506]
[1759313730078,0.8154,4293.0,4292.9,3.16624]
[1759313730079,2.9339,4293.0,4292.9,3.16624]
[1759313730282,2.1185,4293.0,4292.9,4.70774]
[1759313730582,2.12038797,4293.0,4292.9,4.70959994]
[1759313731379,2.12038797,4293.0,4292.9,4.7973503]
[1759313731578,0.8154,4294.0,4293.7,1.2985]
[1759313731882,5.7385,4294.0,4293.9,5.9549]
[1759313732582,5.74017905,4294.0,4293.9,5.9549]
[1759313733176,2.93557905,4294.0,4293.9,7.2534]
[1759313733783,0.00167905,4294.0,4293.9,7.2534]
[1759313734285,2.12017905,4294.0,4293.9,7.2534]
[1759313734681,0.8154,4294.5,4293.9,7.2534]
[1759313734682,2.1185,4294.4,4294.3,0.419]
[1759313734986,3.5929,4294.8,4294.7,2.7471]
[1759313735187,3.5929,4294.8,4294.7,2.9901]
[1759313735391,4.9463,4294.8,4294.7,2.9901]
[1759313735590,4.9231,4294.8,4294.7,2.9901]
[1759313735780,4.92497985,4294.8,4294.7,2.9901]
[1759313736488,3.57157985,4294.8,4294.7,2.9901]
[1759313736883,4.92497985,4294.8,4294.7,2.9901]
[1759313740592,2.12037985,4294.8,4294.7,4.2886]
[1759313740796,0.00187985,4294.8,4294.7,4.2886]
[1759313742595,0.00187985,4294.8,4294.7,40.6226]
[1759313743388,0.81352015,4295.5,4295.4,0.41889]
[1759313743588,2.93202015,4295.5,4295.4,7.91719]
[1759313743791,5.7385,4296.0,4295.9,3.16595]
[1759313743996,5.7385,4296.0,4295.9,6.61675]
[1759313744597,5.74048534,4296.0,4295.9,6.61675]
[1759313744797,2.93588534,4296.0,4295.9,8.02114033]
[1759313745094,2.12048534,4296.0,4295.9,8.02114033]
[1759313745295,0.00198534,4296.0,4295.9,8.02114033]
[1759313746693,3.5697,4296.3,4296.2,3.16592]
[1759313746893,3.5697,4296.3,4296.2,45.50932]
[1759313747699,3.57249772,4296.3,4296.2,45.51213521]
[1759313748488,3.57249772,4296.3,4296.2,44.21173521]
[1759313750195,0.00279772,4296.3,4296.2,44.21173521]
[1759313750404,0.00279772,4296.3,4296.2,45.51213521]
[1759313751101,0.00279772,4296.3,4296.2,45.26913521]
[1759313751297,0.00279772,4296.3,4296.2,43.96873521]
[1759313751298,2.12129772,4296.3,4296.2,43.96873521]
[1759313751597,2.12129772,4296.3,4296.2,80.53173521]
[1759313751797,2.12129772,4296.3,4296.2,81.83213521]
[1759313753405,2.12129772,4296.3,4296.2,45.26913521]
[1759313753702,2.12129772,4296.3,4296.2,81.83013521]
[1759313755702,2.12149772,4296.3,4296.2,81.83013521]
[1759313756801,2.12149772,4296.3,4296.2,43.54991521]
[1759313756997,5.15930772,4296.3,4296.2,0.24581521]
[1759313757197,5.15930772,4296.3,4296.2,0.00281521]
[1759313757394,5.15930772,4296.3,4296.2,0.24581521]
[1759313758100,4.74049772,4296.3,4296.2,0.24581521]
[1759313758302,4.74049772,4296.3,4296.2,0.42163521]
[1759313758499,4.74049772,4296.3,4296.2,0.66463521]
[1759313759605,4.74049772,4296.3,4296.2,2.01613521]
[1759313759805,4.74049772,4296.3,4296.2,1.59731521]
[1759313760195,4.74049772,4296.3,4296.2,0.00281521]
[1759313760402,4.74049772,4296.3,4296.2,0.24581521]
[1759313760703,4.74049772,4296.3,4296.2,0.66463521]
[1759313761098,4.74049772,4296.3,4296.2,0.42163521]
[1759313761306,4.74049772,4296.3,4296.2,0.66463521]
[1759313761806,4.74049772,4296.3,4296.2,2.01613521]
[1759313763805,9.74049772,4296.3,4296.2,0.24581521]
[1759313763998,4.74049772,4296.3,4296.2,1.59731521]
[1759313764204,4.74049772,4296.3,4296.2,3.40942521]
[1759313764506,0.00279772,4296.3,4296.2,4.63832521]
[1759313764910,3.42049772,4296.3,4296.2,4.63832521]
[1759313765202,3.42049772,4296.3,4296.2,4.39532521]
[1759313765506,2.12149772,4296.3,4296.2,40.95132521]
[1759313766308,0.00279772,4296.3,4296.2,40.95132521]
[1759313767405,0.00279772,4296.3,4296.2,4.39532521]
[1759313767607,0.00279772,4296.3,4296.2,40.95032521]
[1759313768610,0.00279772,4296.3,4296.2,4.39532521]
[1759313768804,0.00279772,4296.3,4296.2,40.94932521]
[1759313769403,0.00279772,4296.3,4296.2,81.74932521]
[1759313773210,0.00279772,4296.3,4296.2,45.19532521]
[1759313773713,0.00279772,4296.3,4296.2,83.00115238]
[1759313774312,0.00279772,4296.3,4296.2,83.00149819]
[1759313775106,0.00279772,4296.3,4296.2,81.74732521]
[1759313777207,2.12149772,4296.3,4296.2,45.19532521]
[1759313777514,2.12149772,4296.3,4296.2,81.74632521]
[1759313779210,9.74049772,4296.3,4296.0,0.1862]
[1759313779412,0.41887,4295.7,4295.5,1.67176956]
[1759313779611,6.00648,4295.5,4295.4,3.2078]
[1759313779810,6.49038982,4295.5,4295.4,3.2078]
[1759313780011,6.49038982,4295.5,4295.4,3.4508]
[1759313780211,6.49038982,4295.5,4295.4,3.45294819]
[1759313782309,6.00648,4295.5,4295.4,3.45294819]
[1759313784011,6.00648,4295.5,4295.4,3.36278795]
[1759313785212,6.00148,4295.5,4295.4,3.11978795]
[1759313785518,3.21265,4294.9,4294.8,3.2078]
[1759313785718,4.723,4294.9,4294.8,3.4508]
[1759313786621,4.723,4294.9,4294.8,4.74718581]
[1759313787924,4.723,4294.9,4294.8,6.08588581]
[1759313791821,4.723,4294.9,4294.8,7.84974581]
[1759313792019,1.9293,4295.2,4294.8,6.13678581]
[1759313792219,0.0232,4295.3,4295.2,4.39652]
[1759313792516,1.9525,4295.3,4295.2,4.63952]
[1759313792713,0.0232,4295.3,4295.2,4.63952]
[1759313794424,2.7616,4296.0,4295.9,4.39645]
[1759313794623,2.7616,4296.0,4295.9,7.84725]
[1759313794828,0.00279772,4296.3,4295.9,4.7957]
[1759313795014,3.31779772,4296.3,4296.2,2.6327]
[1759313795217,3.31779772,4296.3,4296.2,3.29452]
[1759313797719,4.72579772,4296.3,4296.2,2.8757]